[Event "*** Titled Tuesday Blitz"]
[Site "Chess.com"]
[Date "2020.04.21"]
[Round "3"]
[White "VALPARAISO37"]
[Black "Blagorod"]
[Result "1-0"]
[WhiteElo "2353"]
[BlackElo "2121"]
[TimeControl "180+1"]
[EndTime "10:27:02 PDT"]
[Termination "VALPARAISO37 won on time"]

1. d4 {[%clk 0:03:00.9]} 1... d5 {[%clk 0:02:59.4]} 2. c4 {[%clk 0:03:00.2]}
2... Nc6 {[%clk 0:02:58.3]} 3. Nf3 {[%clk 0:02:59.7]} 3... Bg4 {[%clk
0:02:56.8]} 4. Nc3 {[%clk 0:02:59.3]} 4... e6 {[%clk 0:02:45.8]} 5. cxd5 {[%clk
0:02:58.2]} 5... exd5 {[%clk 0:02:45]} 6. Bf4 {[%clk 0:02:58.5]} 6... Nf6 {[%clk
0:02:40.4]} 7. e3 {[%clk 0:02:54.3]} 7... Bb4 {[%clk 0:02:37.5]} 8. Rc1 {[%clk
0:02:52.8]} 8... O-O {[%clk 0:02:36.1]} 9. Bd3 {[%clk 0:02:51.9]} 9... Nh5
{[%clk 0:02:22.5]} 10. Bg3 {[%clk 0:02:50.6]} 10... Nxg3 {[%clk 0:02:17.2]} 11.
hxg3 {[%clk 0:02:50.2]} 11... h6 {[%clk 0:02:17.4]} 12. Kf1 {[%clk 0:02:48.3]}
12... Ne7 {[%clk 0:02:00.8]} 13. Ne2 {[%clk 0:02:41.4]} 13... c6 {[%clk
0:01:52.1]} 14. Nf4 {[%clk 0:02:40.1]} 14... Bf5 {[%clk 0:01:46.1]} 15. Ne5
{[%clk 0:02:38.7]} 15... Bd6 {[%clk 0:01:31.4]} 16. Rh5 {[%clk 0:02:38.1]} 16...
Bxd3+ {[%clk 0:01:23.1]} 17. Qxd3 {[%clk 0:02:37]} 17... Bxe5 {[%clk 0:01:22.3]}
18. dxe5 {[%clk 0:02:36.8]} 18... Qb6 {[%clk 0:01:12.3]} 19. b3 {[%clk
0:02:36.3]} 19... Qa5 {[%clk 0:01:07.1]} 20. Qc2 {[%clk 0:02:31.3]} 20... Qb5+
{[%clk 0:00:58.3]} 21. Kg1 {[%clk 0:02:30.8]} 21... a5 {[%clk 0:00:58.6]} 22. e6
{[%clk 0:02:30.5]} 22... a4 {[%clk 0:00:47]} 23. exf7+ {[%clk 0:02:30.3]} 23...
Rxf7 {[%clk 0:00:47.2]} 24. Ne6 {[%clk 0:02:30.4]} 24... axb3 {[%clk 0:00:41.2]}
25. axb3 {[%clk 0:02:30]} 25... Ra3 {[%clk 0:00:38.5]} 26. Rb1 {[%clk 0:02:25]}
26... Qa5 {[%clk 0:00:32.8]} 27. Kh2 {[%clk 0:02:23.3]} 27... Ra2 {[%clk
0:00:32.3]} 28. Rb2 {[%clk 0:02:23.5]} 28... Rxb2 {[%clk 0:00:31.3]} 29. Qxb2
{[%clk 0:02:23.6]} 29... Qe1 {[%clk 0:00:27.4]} 30. f4 {[%clk 0:02:13]} 30...
Qxe3 {[%clk 0:00:25.3]} 31. Re5 {[%clk 0:02:13.2]} 31... Qb6 {[%clk 0:00:18.2]}
32. b4 {[%clk 0:02:11.2]} 32... Qa7 {[%clk 0:00:10.1]} 33. g4 {[%clk 0:02:09.8]}
33... Qb8 {[%clk 0:00:09.5]} 34. Qd4 {[%clk 0:02:05]} 34... Ng6 {[%clk
0:00:08.7]} 35. Rf5 {[%clk 0:02:03.2]} 35... Rxf5 {[%clk 0:00:08.1]} 36. gxf5
{[%clk 0:02:03.5]} 36... Ne5 {[%clk 0:00:02.9]} 37. fxe5 {[%clk 0:02:03.2]} 1-0

[Event "*** Titled Tuesday Blitz"]
[Site "Chess.com"]
[Date "2020.04.21"]
[Round "3"]
[White "DoHoChess"]
[Black "mrsavic77"]
[Result "1/2-1/2"]
[WhiteElo "2531"]
[BlackElo "2746"]
[TimeControl "180+1"]
[EndTime "10:27:03 PDT"]
[Termination "Game drawn by agreement"]

1. Nf3 {[%clk 0:03:00.9]} 1... Nf6 {[%clk 0:02:59.2]} 2. c4 {[%clk 0:03:00.9]}
2... e6 {[%clk 0:03:00.1]} 3. g3 {[%clk 0:03:00.4]} 3... d5 {[%clk 0:03:00.6]}
4. Bg2 {[%clk 0:03:00.6]} 4... Be7 {[%clk 0:03:00.4]} 5. d4 {[%clk 0:02:59.3]}
5... O-O {[%clk 0:02:59.2]} 6. Qc2 {[%clk 0:02:59.8]} 6... c6 {[%clk 0:02:53.9]}
7. O-O {[%clk 0:02:58]} 7... b6 {[%clk 0:02:54.2]} 8. b3 {[%clk 0:02:56.2]} 8...
Bb7 {[%clk 0:02:50]} 9. Nc3 {[%clk 0:02:47]} 9... Nbd7 {[%clk 0:02:49.8]} 10.
Bb2 {[%clk 0:02:42]} 10... Rc8 {[%clk 0:02:39.3]} 11. e4 {[%clk 0:02:35.6]}
11... dxe4 {[%clk 0:02:34.5]} 12. Nxe4 {[%clk 0:02:36.5]} 12... c5 {[%clk
0:02:33]} 13. Nxf6+ {[%clk 0:02:28]} 13... Nxf6 {[%clk 0:02:33]} 14. Rad1 {[%clk
0:02:26.8]} 14... cxd4 {[%clk 0:02:28.8]} 15. Nxd4 {[%clk 0:02:22.9]} 15... Bxg2
{[%clk 0:02:23.7]} 16. Kxg2 {[%clk 0:02:18.4]} 16... Qc7 {[%clk 0:02:21.9]} 17.
Qe2 {[%clk 0:02:12.5]} 17... a6 {[%clk 0:02:18.2]} 18. Rd3 {[%clk 0:02:10.2]}
18... b5 {[%clk 0:02:14.8]} 19. Rc1 {[%clk 0:02:06.1]} 19... bxc4 {[%clk
0:02:10.2]} 20. Rxc4 {[%clk 0:01:58.8]} 20... Qb7+ {[%clk 0:02:09.6]} 21. Qf3
{[%clk 0:01:53.5]} 21... Qxf3+ {[%clk 0:02:09.1]} 22. Kxf3 {[%clk 0:01:43.5]}
22... Rxc4 {[%clk 0:02:01.4]} 23. bxc4 {[%clk 0:01:43.4]} 23... Rc8 {[%clk
0:02:02.1]} 24. Rb3 {[%clk 0:01:42.1]} 24... h5 {[%clk 0:01:58.1]} 25. Rb7
{[%clk 0:01:41.6]} 25... Bf8 {[%clk 0:01:55]} 26. Nb3 {[%clk 0:01:36.4]} 26...
Rxc4 {[%clk 0:01:50.8]} 27. Rb8 {[%clk 0:01:29]} 27... Rc2 {[%clk 0:01:41.2]}
28. Nd4 {[%clk 0:01:20.2]} 28... Rc4 {[%clk 0:01:36.7]} 29. Nb3 {[%clk
0:01:15.8]} 29... Rc2 {[%clk 0:01:25.1]} 30. Nd4 {[%clk 0:01:13.5]} 30... Rc7
{[%clk 0:01:24.7]} 31. Kg2 {[%clk 0:01:11.2]} 31... Nd7 {[%clk 0:01:19.6]} 32.
Ra8 {[%clk 0:01:09.5]} 32... e5 {[%clk 0:01:17.5]} 33. Nb3 {[%clk 0:01:08.3]}
33... Rc2 {[%clk 0:01:16.6]} 34. Ba3 {[%clk 0:01:05.7]} 34... g6 {[%clk
0:01:15.1]} 35. Bxf8 {[%clk 0:01:01.3]} 35... Nxf8 {[%clk 0:01:16]} 36. Rxa6
{[%clk 0:01:01.8]} 36... Ne6 {[%clk 0:01:14.1]} 37. Ra5 {[%clk 0:00:59.3]} 37...
e4 {[%clk 0:01:13.4]} 38. Re5 {[%clk 0:00:57.4]} 1/2-1/2

[Event "*** Titled Tuesday Blitz"]
[Site "Chess.com"]
[Date "2020.04.21"]
[Round "3"]
[White "AnonymusDonkey"]
[Black "Violord"]
[Result "0-1"]
[WhiteElo "2394"]
[BlackElo "2609"]
[TimeControl "180+1"]
[EndTime "10:27:05 PDT"]
[Termination "Violord won by resignation"]

1. e4 {[%clk 0:03:00.9]} 1... g6 {[%clk 0:02:59.4]} 2. d4 {[%clk 0:03:00.7]}
2... Bg7 {[%clk 0:02:58.6]} 3. Nc3 {[%clk 0:03:00.7]} 3... c6 {[%clk 0:02:58.8]}
4. Nf3 {[%clk 0:02:55.1]} 4... d5 {[%clk 0:02:57.9]} 5. h3 {[%clk 0:02:55.4]}
5... dxe4 {[%clk 0:02:57.6]} 6. Nxe4 {[%clk 0:02:56.3]} 6... Bf5 {[%clk
0:02:57.7]} 7. Ng3 {[%clk 0:02:45]} 7... Be6 {[%clk 0:02:56.3]} 8. Be2 {[%clk
0:02:38.1]} 8... Nf6 {[%clk 0:02:55.6]} 9. O-O {[%clk 0:02:37.8]} 9... O-O
{[%clk 0:02:54.6]} 10. c4 {[%clk 0:02:20.3]} 10... b5 {[%clk 0:02:53]} 11. d5
{[%clk 0:02:06.4]} 11... cxd5 {[%clk 0:02:47.9]} 12. cxb5 {[%clk 0:02:04.7]}
12... a6 {[%clk 0:02:48.6]} 13. a4 {[%clk 0:01:58.2]} 13... axb5 {[%clk
0:02:45.6]} 14. Bxb5 {[%clk 0:01:58.8]} 14... Bd7 {[%clk 0:02:44.9]} 15. Bxd7
{[%clk 0:01:27.8]} 15... Nbxd7 {[%clk 0:02:43.7]} 16. Bf4 {[%clk 0:01:24.7]}
16... Qb6 {[%clk 0:02:38.8]} 17. Qe2 {[%clk 0:01:20.7]} 17... e6 {[%clk
0:02:36.7]} 18. Ne5 {[%clk 0:01:12.5]} 18... Qb4 {[%clk 0:02:28]} 19. Nd3 {[%clk
0:01:02.3]} 19... Qb7 {[%clk 0:02:09]} 20. Rfc1 {[%clk 0:00:50.6]} 20... e5
{[%clk 0:01:58]} 21. Bxe5 {[%clk 0:00:29.6]} 21... Nxe5 {[%clk 0:01:47.7]} 22.
Nxe5 {[%clk 0:00:30.5]} 22... Rfe8 {[%clk 0:01:46.7]} 23. f4 {[%clk 0:00:30.5]}
23... Nd7 {[%clk 0:01:44.1]} 24. Qb5 {[%clk 0:00:14.4]} 24... Qxb5 {[%clk
0:01:39.5]} 25. axb5 {[%clk 0:00:15.3]} 25... Nxe5 {[%clk 0:01:39.6]} 26. fxe5
{[%clk 0:00:14.9]} 26... Bxe5 {[%clk 0:01:39.5]} 27. Nf1 {[%clk 0:00:08.8]}
27... Rab8 {[%clk 0:01:38.3]} 28. Rd1 {[%clk 0:00:07.5]} 28... Rxb5 {[%clk
0:01:35.4]} 29. Ra2 {[%clk 0:00:06.7]} 0-1

[Event "*** Titled Tuesday Blitz"]
[Site "Chess.com"]
[Date "2020.04.21"]
[Round "3"]
[White "erlesfar"]
[Black "Karacsonyi_Gellert"]
[Result "0-1"]
[WhiteElo "2245"]
[BlackElo "2487"]
[TimeControl "180+1"]
[EndTime "10:27:06 PDT"]
[Termination "Karacsonyi_Gellert won by resignation"]

1. e4 {[%clk 0:02:52.8]} 1... c5 {[%clk 0:02:59.7]} 2. d4 {[%clk 0:02:52.1]}
2... cxd4 {[%clk 0:02:59.6]} 3. c3 {[%clk 0:02:51.8]} 3... Nf6 {[%clk 0:03:00]}
4. e5 {[%clk 0:02:51.1]} 4... Nd5 {[%clk 0:03:00.5]} 5. Nf3 {[%clk 0:02:51.3]}
5... e6 {[%clk 0:03:00.8]} 6. cxd4 {[%clk 0:02:50.1]} 6... d6 {[%clk 0:03:01.3]}
7. a3 {[%clk 0:02:49]} 7... Nc6 {[%clk 0:03:00.4]} 8. Bd3 {[%clk 0:02:47.9]}
8... dxe5 {[%clk 0:02:59.9]} 9. dxe5 {[%clk 0:02:47]} 9... Be7 {[%clk
0:03:00.4]} 10. O-O {[%clk 0:02:45.9]} 10... O-O {[%clk 0:03:00.9]} 11. Qe2
{[%clk 0:02:45.7]} 11... Bd7 {[%clk 0:02:57.3]} 12. Rd1 {[%clk 0:02:44.7]} 12...
f5 {[%clk 0:02:56.1]} 13. exf6 {[%clk 0:02:43.2]} 13... Nxf6 {[%clk 0:02:55.7]}
14. Nc3 {[%clk 0:02:40.7]} 14... Qc7 {[%clk 0:02:54.5]} 15. Bc4 {[%clk
0:02:34.7]} 15... Kh8 {[%clk 0:02:49.5]} 16. Bxe6 {[%clk 0:02:33.9]} 16... Bxe6
{[%clk 0:02:49.7]} 17. Qxe6 {[%clk 0:02:33.1]} 17... Rae8 {[%clk 0:02:50.2]} 18.
Qh3 {[%clk 0:02:28]} 18... Bc5 {[%clk 0:02:46.2]} 19. Bg5 {[%clk 0:02:25.5]}
19... Qb6 {[%clk 0:02:39.5]} 20. Bxf6 {[%clk 0:02:20.1]} 20... Bxf2+ {[%clk
0:02:37]} 21. Kh1 {[%clk 0:02:19.2]} 21... Rxf6 {[%clk 0:02:37.9]} 22. Nd5
{[%clk 0:02:16.9]} 22... Qxb2 {[%clk 0:02:33.1]} 23. Nxf6 {[%clk 0:02:16.4]}
23... Qxf6 {[%clk 0:02:34]} 24. Qd7 {[%clk 0:02:13.8]} 24... Rf8 {[%clk
0:02:26.7]} 25. Qxb7 {[%clk 0:02:10.3]} 25... Ne7 {[%clk 0:02:23.3]} 26. Qb5
{[%clk 0:02:01.8]} 26... Nf5 {[%clk 0:02:22]} 27. Rab1 {[%clk 0:01:58]} 27...
Ne3 {[%clk 0:02:15.9]} 28. Rd3 {[%clk 0:01:56.3]} 28... Qg6 {[%clk 0:02:09.4]}
29. Rxe3 {[%clk 0:01:53.5]} 29... Bxe3 {[%clk 0:02:08.5]} 30. Qb4 {[%clk
0:01:52]} 30... Bc5 {[%clk 0:02:02.7]} 31. Qb3 {[%clk 0:01:48.5]} 31... Bxa3
{[%clk 0:02:00.4]} 32. h3 {[%clk 0:01:46.1]} 32... Bc5 {[%clk 0:01:59.5]} 33.
Rc1 {[%clk 0:01:44.6]} 33... Bb6 {[%clk 0:01:58.9]} 34. Qb4 {[%clk 0:01:43.3]}
34... Qf6 {[%clk 0:01:51.9]} 35. Qe4 {[%clk 0:01:40.9]} 35... h6 {[%clk
0:01:48.2]} 36. Rc6 {[%clk 0:01:39]} 36... Qa1+ {[%clk 0:01:37.4]} 37. Kh2
{[%clk 0:01:37.5]} 37... Bf2 {[%clk 0:01:04.6]} 38. Qe5 {[%clk 0:01:31.9]} 38...
Bg1+ {[%clk 0:00:47.2]} 39. Kg3 {[%clk 0:01:29]} 39... Rxf3+ {[%clk 0:00:46.2]}
40. Kxf3 {[%clk 0:01:28.5]} 40... Qxe5 {[%clk 0:00:47.1]} 41. Rc8+ {[%clk
0:01:28.4]} 41... Kh7 {[%clk 0:00:45.6]} 0-1

[Event "*** Titled Tuesday Blitz"]
[Site "Chess.com"]
[Date "2020.04.21"]
[Round "3"]
[White "DaggiGretarsson"]
[Black "fugadelafuga"]
[Result "0-1"]
[WhiteElo "2588"]
[BlackElo "2402"]
[TimeControl "180+1"]
[EndTime "10:27:07 PDT"]
[Termination "fugadelafuga won by resignation"]

1. d4 {[%clk 0:02:59.3]} 1... Nf6 {[%clk 0:02:53.9]} 2. c4 {[%clk 0:02:58.9]}
2... c5 {[%clk 0:02:53.8]} 3. Nf3 {[%clk 0:02:57.6]} 3... cxd4 {[%clk
0:02:53.5]} 4. Nxd4 {[%clk 0:02:57.8]} 4... Nc6 {[%clk 0:02:54.4]} 5. Nc3 {[%clk
0:02:57.1]} 5... d6 {[%clk 0:02:53]} 6. g3 {[%clk 0:02:56]} 6... g6 {[%clk
0:02:48.7]} 7. Bg2 {[%clk 0:02:56]} 7... Bg7 {[%clk 0:02:47.1]} 8. Nxc6 {[%clk
0:02:54]} 8... bxc6 {[%clk 0:02:43]} 9. Bxc6+ {[%clk 0:02:54]} 9... Bd7 {[%clk
0:02:40.6]} 10. Bxa8 {[%clk 0:02:53.9]} 10... Qxa8 {[%clk 0:02:40.2]} 11. f3
{[%clk 0:02:53.9]} 11... O-O {[%clk 0:02:35]} 12. Be3 {[%clk 0:02:43.9]} 12...
Rc8 {[%clk 0:02:24.1]} 13. b3 {[%clk 0:02:41.5]} 13... d5 {[%clk 0:02:19.2]} 14.
Rc1 {[%clk 0:02:01]} 14... dxc4 {[%clk 0:02:11.6]} 15. O-O {[%clk 0:02:00.8]}
15... Bh3 {[%clk 0:01:56.8]} 16. Re1 {[%clk 0:01:57.1]} 16... Ng4 {[%clk
0:01:54.5]} 17. Bf4 {[%clk 0:01:28.8]} 17... cxb3 {[%clk 0:01:30.7]} 18. Nd5
{[%clk 0:01:16.2]} 18... Rxc1 {[%clk 0:01:23.4]} 19. Nxe7+ {[%clk 0:01:02.7]}
19... Kh8 {[%clk 0:01:22.5]} 20. Qxc1 {[%clk 0:01:00.1]} 20... bxa2 {[%clk
0:01:13.8]} 21. Qa3 {[%clk 0:00:47.4]} 21... Bd4+ {[%clk 0:00:57.8]} 22. e3
{[%clk 0:00:43.2]} 22... Qxf3 {[%clk 0:00:55.2]} 23. Nxg6+ {[%clk 0:00:42]}
23... hxg6 {[%clk 0:00:51.5]} 24. Qf8+ {[%clk 0:00:40.2]} 24... Kh7 {[%clk
0:00:50.3]} 25. Qxf7+ {[%clk 0:00:40.1]} 25... Bg7 {[%clk 0:00:50.2]} 0-1

[Event "*** Titled Tuesday Blitz"]
[Site "Chess.com"]
[Date "2020.04.21"]
[Round "3"]
[White "Mfcyryd"]
[Black "PowerThinking2650"]
[Result "1/2-1/2"]
[WhiteElo "2535"]
[BlackElo "2282"]
[TimeControl "180+1"]
[EndTime "10:27:09 PDT"]
[Termination "Game drawn by agreement"]

1. e4 {[%clk 0:03:00.4]} 1... e5 {[%clk 0:02:59.5]} 2. Nf3 {[%clk 0:02:59.2]}
2... Nc6 {[%clk 0:02:59.2]} 3. Bb5 {[%clk 0:02:59]} 3... a6 {[%clk 0:02:59]} 4.
Ba4 {[%clk 0:02:59.1]} 4... Nf6 {[%clk 0:02:58.6]} 5. d3 {[%clk 0:02:59.2]} 5...
b5 {[%clk 0:02:56.9]} 6. Bb3 {[%clk 0:02:58.1]} 6... Bc5 {[%clk 0:02:57.5]} 7.
a4 {[%clk 0:02:57.1]} 7... Bb7 {[%clk 0:02:56.8]} 8. O-O {[%clk 0:02:55.9]} 8...
d6 {[%clk 0:02:56.1]} 9. Nc3 {[%clk 0:02:54.8]} 9... Rb8 {[%clk 0:02:28.8]} 10.
Bg5 {[%clk 0:02:50.3]} 10... h6 {[%clk 0:02:25]} 11. Bxf6 {[%clk 0:02:50.2]}
11... Qxf6 {[%clk 0:02:25.1]} 12. axb5 {[%clk 0:02:50.3]} 12... axb5 {[%clk
0:02:21.1]} 13. Nxb5 {[%clk 0:02:50.2]} 13... Bb6 {[%clk 0:02:13.7]} 14. Bd5
{[%clk 0:02:49.6]} 14... O-O {[%clk 0:02:02.9]} 15. Nd2 {[%clk 0:02:49.3]} 15...
Nd4 {[%clk 0:01:57.1]} 16. Nxd4 {[%clk 0:02:38.4]} 16... Bxd5 {[%clk 0:01:49.9]}
17. exd5 {[%clk 0:02:37.5]} 17... Bxd4 {[%clk 0:01:47.8]} 18. c3 {[%clk
0:02:37.5]} 18... Bb6 {[%clk 0:01:38.8]} 19. Qe2 {[%clk 0:02:37]} 19... Qg6
{[%clk 0:01:35.6]} 20. Kh1 {[%clk 0:02:36.3]} 20... f5 {[%clk 0:01:30.3]} 21. b4
{[%clk 0:02:36]} 21... Rbe8 {[%clk 0:01:21.1]} 22. Nc4 {[%clk 0:02:35]} 22... e4
{[%clk 0:01:18.2]} 23. Nxb6 {[%clk 0:02:33.6]} 23... cxb6 {[%clk 0:01:18.4]} 24.
Ra6 {[%clk 0:02:33.2]} 24... Qf6 {[%clk 0:01:00.2]} 25. d4 {[%clk 0:02:23.3]}
25... f4 {[%clk 0:00:58.7]} 26. f3 {[%clk 0:02:13.6]} 26... exf3 {[%clk
0:00:42.9]} 27. Qxf3 {[%clk 0:02:13.1]} 27... Re3 {[%clk 0:00:42.9]} 28. Qf2
{[%clk 0:02:09.1]} 28... b5 {[%clk 0:00:36.6]} 29. Rc6 {[%clk 0:02:04.6]} 29...
g5 {[%clk 0:00:33.2]} 30. h3 {[%clk 0:02:03.3]} 30... Qf5 {[%clk 0:00:29.5]} 31.
Rxd6 {[%clk 0:02:00.3]} 31... Rxc3 {[%clk 0:00:25.6]} 32. Qe2 {[%clk 0:01:55.5]}
32... Re3 {[%clk 0:00:20.6]} 33. Qxe3 {[%clk 0:01:53.7]} 33... fxe3 {[%clk
0:00:20.2]} 34. Rxf5 {[%clk 0:01:54.6]} 34... Rxf5 {[%clk 0:00:20.1]} 35. Re6
{[%clk 0:01:55.1]} 35... Rxd5 {[%clk 0:00:20.1]} 36. Rxe3 {[%clk 0:01:56]} 36...
Rxd4 {[%clk 0:00:20.3]} 37. Rb3 {[%clk 0:01:55.9]} 37... Kg7 {[%clk 0:00:18.9]}
38. Kh2 {[%clk 0:01:56.3]} 38... Kg6 {[%clk 0:00:19.1]} 39. Kg3 {[%clk
0:01:55.6]} 39... Rc4 {[%clk 0:00:18.9]} 1/2-1/2

[Event "*** Titled Tuesday Blitz"]
[Site "Chess.com"]
[Date "2020.04.21"]
[Round "3"]
[White "GMMatamoros"]
[Black "andy_rekt"]
[Result "1-0"]
[WhiteElo "2527"]
[BlackElo "2248"]
[TimeControl "180+1"]
[EndTime "10:27:15 PDT"]
[Termination "GMMatamoros won by resignation"]

1. Nf3 {[%clk 0:03:00.9]} 1... c5 {[%clk 0:02:59.9]} 2. c4 {[%clk 0:03:00.2]}
2... Nc6 {[%clk 0:03:00.1]} 3. Nc3 {[%clk 0:02:59.3]} 3... e5 {[%clk 0:02:59.9]}
4. g3 {[%clk 0:02:57.5]} 4... g6 {[%clk 0:03:00]} 5. d3 {[%clk 0:02:57.3]} 5...
Bg7 {[%clk 0:03:00.4]} 6. a3 {[%clk 0:02:57.8]} 6... Nge7 {[%clk 0:02:55.7]} 7.
Bg2 {[%clk 0:02:30.6]} 7... O-O {[%clk 0:02:51.3]} 8. O-O {[%clk 0:02:29.8]}
8... d6 {[%clk 0:02:29.5]} 9. Rb1 {[%clk 0:02:29]} 9... a5 {[%clk 0:02:28.4]}
10. Bg5 {[%clk 0:02:28.8]} 10... f6 {[%clk 0:02:21.1]} 11. Bd2 {[%clk
0:02:28.2]} 11... Be6 {[%clk 0:02:13.6]} 12. Ne1 {[%clk 0:02:26]} 12... Rb8
{[%clk 0:02:06.2]} 13. Nc2 {[%clk 0:02:23.5]} 13... d5 {[%clk 0:02:04.6]} 14.
cxd5 {[%clk 0:02:23]} 14... Nxd5 {[%clk 0:02:04.9]} 15. b4 {[%clk 0:02:18.4]}
15... axb4 {[%clk 0:01:52.7]} 16. Nxd5 {[%clk 0:02:18.3]} 16... Bxd5 {[%clk
0:01:51.6]} 17. Bxd5+ {[%clk 0:02:18.8]} 17... Qxd5 {[%clk 0:01:51.3]} 18. axb4
{[%clk 0:02:19.3]} 18... cxb4 {[%clk 0:01:20]} 19. Nxb4 {[%clk 0:02:20.2]} 19...
Nxb4 {[%clk 0:01:19.7]} 20. Rxb4 {[%clk 0:02:20.4]} 20... f5 {[%clk 0:01:14.5]}
21. Qb3 {[%clk 0:02:16.9]} 21... Qxb3 {[%clk 0:01:13.5]} 22. Rxb3 {[%clk
0:02:17.8]} 22... Rf7 {[%clk 0:01:05.8]} 23. Rfb1 {[%clk 0:02:16.9]} 23... Rd7
{[%clk 0:01:05.8]} 24. Rb5 {[%clk 0:02:10.6]} 24... Kf7 {[%clk 0:01:00.7]} 25.
Be3 {[%clk 0:02:10.2]} 25... Bf6 {[%clk 0:00:41]} 26. h4 {[%clk 0:02:05.4]}
26... Ke6 {[%clk 0:00:28.4]} 27. Ba7 {[%clk 0:01:58.1]} 27... Ra8 {[%clk
0:00:27.8]} 28. Bc5 {[%clk 0:01:57.9]} 28... Rb8 {[%clk 0:00:26.9]} 29. Rb6+
{[%clk 0:01:57.8]} 29... Kf7 {[%clk 0:00:25.9]} 30. Bd6 {[%clk 0:01:52.7]} 30...
Rbd8 {[%clk 0:00:21]} 31. Rxb7 {[%clk 0:01:51.9]} 31... Rxb7 {[%clk 0:00:20.3]}
32. Rxb7+ {[%clk 0:01:52.2]} 32... Ke6 {[%clk 0:00:20.9]} 33. Bb4 {[%clk
0:01:46.8]} 33... h5 {[%clk 0:00:18.7]} 34. Bd2 {[%clk 0:01:36.4]} 34... e4
{[%clk 0:00:18.2]} 35. Rb6+ {[%clk 0:01:34.8]} 35... Kf7 {[%clk 0:00:18]} 36.
Rxf6+ {[%clk 0:01:33.8]} 1-0

[Event "*** Titled Tuesday Blitz"]
[Site "Chess.com"]
[Date "2020.04.21"]
[Round "3"]
[White "MFBerna"]
[Black "nonscitis"]
[Result "1-0"]
[WhiteElo "2372"]
[BlackElo "2615"]
[TimeControl "180+1"]
[EndTime "10:27:17 PDT"]
[Termination "MFBerna won by resignation"]

1. e4 {[%clk 0:03:00.9]} 1... e5 {[%clk 0:02:58.9]} 2. Nf3 {[%clk 0:03:01.3]}
2... Nc6 {[%clk 0:02:59.1]} 3. Bc4 {[%clk 0:03:01.8]} 3... Nf6 {[%clk
0:02:59.2]} 4. d3 {[%clk 0:03:01.4]} 4... Be7 {[%clk 0:02:59.3]} 5. O-O {[%clk
0:03:01.4]} 5... O-O {[%clk 0:02:59.9]} 6. c3 {[%clk 0:03:01.8]} 6... d6 {[%clk
0:03:00.2]} 7. h3 {[%clk 0:03:01.1]} 7... Kh8 {[%clk 0:02:46.2]} 8. Re1 {[%clk
0:02:58.8]} 8... Ng8 {[%clk 0:02:28.9]} 9. d4 {[%clk 0:02:53.7]} 9... f5 {[%clk
0:02:29.2]} 10. exf5 {[%clk 0:02:54.6]} 10... Bxf5 {[%clk 0:02:26.3]} 11. dxe5
{[%clk 0:02:54.6]} 11... Nxe5 {[%clk 0:02:19.6]} 12. Nxe5 {[%clk 0:02:54.1]}
12... dxe5 {[%clk 0:02:20]} 13. Qxd8 {[%clk 0:02:54.6]} 13... Raxd8 {[%clk
0:02:20]} 14. Nd2 {[%clk 0:02:45.6]} 14... e4 {[%clk 0:02:10.4]} 15. Nf1 {[%clk
0:02:41.9]} 15... Bh4 {[%clk 0:02:05.2]} 16. Be3 {[%clk 0:02:38.4]} 16... b6
{[%clk 0:02:01.6]} 17. Rad1 {[%clk 0:02:35.9]} 17... Ne7 {[%clk 0:01:55.3]} 18.
Ng3 {[%clk 0:02:25.7]} 18... Bxg3 {[%clk 0:01:54.2]} 19. fxg3 {[%clk 0:02:26.6]}
19... c6 {[%clk 0:01:48.4]} 20. Rxd8 {[%clk 0:01:56.9]} 20... Rxd8 {[%clk
0:01:47.3]} 21. Bg5 {[%clk 0:01:56.2]} 21... Re8 {[%clk 0:01:33.3]} 22. Rf1
{[%clk 0:01:28.4]} 22... Bxh3 {[%clk 0:01:00.2]} 23. Bxe7 {[%clk 0:01:17.8]}
23... Bc8 {[%clk 0:00:46.3]} 24. Rf8+ {[%clk 0:01:01.4]} 24... Rxf8 {[%clk
0:00:46.5]} 25. Bxf8 {[%clk 0:01:02.3]} 25... g5 {[%clk 0:00:37.1]} 26. Kf2
{[%clk 0:01:01.1]} 26... h6 {[%clk 0:00:34.7]} 27. Bxh6 {[%clk 0:01:00.2]} 1-0

[Event "*** Titled Tuesday Blitz"]
[Site "Chess.com"]
[Date "2020.04.21"]
[Round "3"]
[White "KrakenBeast"]
[Black "robertofabregas"]
[Result "1-0"]
[WhiteElo "2351"]
[BlackElo "2110"]
[TimeControl "180+1"]
[EndTime "10:27:20 PDT"]
[Termination "KrakenBeast won by resignation"]

1. d4 {[%clk 0:03:00.9]} 1... Nf6 {[%clk 0:02:59.3]} 2. c4 {[%clk 0:02:54]} 2...
e6 {[%clk 0:02:59.5]} 3. g3 {[%clk 0:02:53.4]} 3... c6 {[%clk 0:02:55.8]} 4. Bg2
{[%clk 0:02:53.4]} 4... d5 {[%clk 0:02:56.2]} 5. Nd2 {[%clk 0:02:51.9]} 5... Be7
{[%clk 0:02:56]} 6. Ngf3 {[%clk 0:02:52.3]} 6... O-O {[%clk 0:02:56.2]} 7. Qc2
{[%clk 0:02:52.9]} 7... Nbd7 {[%clk 0:02:52]} 8. O-O {[%clk 0:02:51.6]} 8... Re8
{[%clk 0:02:52.4]} 9. e4 {[%clk 0:02:52]} 9... Nxe4 {[%clk 0:02:48.9]} 10. Nxe4
{[%clk 0:02:52.9]} 10... dxe4 {[%clk 0:02:49]} 11. Qxe4 {[%clk 0:02:53.8]} 11...
Nf6 {[%clk 0:02:49.2]} 12. Qe2 {[%clk 0:02:54]} 12... Qc7 {[%clk 0:02:45.9]} 13.
b3 {[%clk 0:02:51]} 13... b6 {[%clk 0:02:46]} 14. Bb2 {[%clk 0:02:45.8]} 14...
Bb7 {[%clk 0:02:45.9]} 15. Rfd1 {[%clk 0:02:43.1]} 15... Rad8 {[%clk 0:02:46.1]}
16. Rd3 {[%clk 0:02:42.8]} 16... c5 {[%clk 0:02:39.9]} 17. Rad1 {[%clk
0:02:42.6]} 17... cxd4 {[%clk 0:02:37.2]} 18. Nxd4 {[%clk 0:02:41.7]} 18... Bxg2
{[%clk 0:02:35.5]} 19. Kxg2 {[%clk 0:02:42.6]} 19... Rd7 {[%clk 0:01:55.7]} 20.
Qf3 {[%clk 0:02:20.6]} 20... Red8 {[%clk 0:01:41.2]} 21. Nc6 {[%clk 0:02:20.3]}
21... Rxd3 {[%clk 0:01:33.5]} 22. Rxd3 {[%clk 0:02:21.2]} 22... Rxd3 {[%clk
0:01:23.1]} 23. Nxe7+ {[%clk 0:02:20.9]} 23... Qxe7 {[%clk 0:01:21.3]} 24. Qxd3
{[%clk 0:02:21.8]} 24... Qd7 {[%clk 0:01:18.1]} 25. Qxd7 {[%clk 0:02:20.2]}
25... Nxd7 {[%clk 0:01:19]} 26. Kf3 {[%clk 0:02:18.4]} 26... f5 {[%clk
0:01:11.9]} 27. b4 {[%clk 0:02:10.9]} 27... Kf7 {[%clk 0:01:11]} 28. Kf4 {[%clk
0:02:08]} 28... g6 {[%clk 0:01:05.2]} 29. f3 {[%clk 0:02:07.5]} 29... h6 {[%clk
0:01:03.2]} 30. h4 {[%clk 0:02:06.5]} 30... e5+ {[%clk 0:01:03.4]} 31. Ke3
{[%clk 0:02:06.1]} 31... Ke6 {[%clk 0:01:03.5]} 32. g4 {[%clk 0:02:02.7]} 32...
Nb8 {[%clk 0:00:50.2]} 33. h5 {[%clk 0:01:59]} 33... gxh5 {[%clk 0:00:49.7]} 34.
gxh5 {[%clk 0:01:59.3]} 34... Nc6 {[%clk 0:00:43.3]} 35. a3 {[%clk 0:01:59.4]}
35... Ne7 {[%clk 0:00:37.5]} 36. f4 {[%clk 0:01:55.1]} 36... exf4+ {[%clk
0:00:20.5]} 37. Kxf4 {[%clk 0:01:54.4]} 37... Nc8 {[%clk 0:00:21]} 38. Bg7
{[%clk 0:01:49.8]} 38... Nd6 {[%clk 0:00:19.7]} 39. c5 {[%clk 0:01:50.2]} 39...
bxc5 {[%clk 0:00:19.8]} 40. bxc5 {[%clk 0:01:51.1]} 40... Nc4 {[%clk 0:00:18.4]}
41. a4 {[%clk 0:01:50.9]} 41... Nb2 {[%clk 0:00:18.3]} 42. Bxb2 {[%clk
0:01:50.3]} 42... Kd5 {[%clk 0:00:17.9]} 43. Kxf5 {[%clk 0:01:49.9]} 43... Kxc5
{[%clk 0:00:18.8]} 44. Kg6 {[%clk 0:01:50.8]} 1-0